[Event "ESTCC U65 2018"]
[Site "Walbrzych"]
[Date "2018.04.14"]
[Round "1"]
[White "Kauko, Pekka"]
[Black "Westerinen, Heikki M J"]
[Result "0-1"]
[ECO "E95"]
[WhiteElo "1961"]
[BlackElo "2308"]
[Annotator "NA"]
[PlyCount "88"]
[EventDate "2018.??.??"]
[EventCountry "POL"]
[SourceTitle "playchess.com"]
[Source "ChessBase"]
[SourceQuality "1"]
[WhiteTeam "Finland"]
[BlackTeam "Finland"]
[WhiteTeamCountry "FIN"]
[BlackTeamCountry "FIN"]
[TimeControl "40/5400+30:1800+30"]

1. d4 {[%emt 0:00:00]} Nf6 {[%emt 0:00:48]} 2. c4 {[%emt 0:00:02]} g6 {[%emt 0:00:19]} 3. Nc3 {[%emt 0:00:11]} Bg7 {[%emt 0:00:06]} 4. e4 {[%emt 0:00:42]} d6 {[%emt 0:00:18]} 5. Nf3 {[%emt 0:00:26]} O-O {[%emt 0:00:47]} 6. Be2 {[%emt 0:00:22]} e5 {[%emt 0:01:01]} 7. O-O {[%emt 0:00:33]} Nbd7 {[%emt 0:02:49]} 8. Re1 {[%emt 0:01:52]} c6 {[%emt 0:01:40]} 9. Rb1 {[%emt 0:02:32]} Re8 {[%emt 0:07:29]} 10. dxe5 {[%emt 0:01:33] E95: King's Indian: Classical: 7...Nbd7 8 Re1} (10. d5 Nc5 11. Bf1 a5 12. b3 cxd5 13. cxd5 Bd7 14. Nd2 Qe7 15. a3 Reb8 16. a4 Ne8 17. Nc4 b6 18. b4 Nxa4 19. Nxa4 Bxa4 20. Qxa4 b5 21. Qc2 bxc4 {0-1 (76) Phiri,R (2342)-Roselli Mailhe,B (2434) Baku 2016}) 10... dxe5 $146 {[%emt 0:01:45]} ({Predecessor:} 10... Nxe5 11. Nxe5 dxe5 12. Be3 Qxd1 13. Rexd1 Ng4 14. Bxg4 Bxg4 15. f3 Be6 16. b3 b6 17. Rd3 Red8 18. Rbd1 Bf6 19. Rxd8+ Rxd8 20. Rxd8+ Bxd8 {½-½ (20) De Castro,E-Naranja,R Manila 1973}) 11. h3 {[%emt 0:11:45]} Qc7 {[%emt 0:06:15]} 12. b4 {[%emt 0:00:36]} Nf8 {[%emt 0:01:13]} 13. Be3 {[%emt 0:05:26]} Ne6 {[%emt 0:07:55]} 14. Qc1 {[%emt 0:11:33]} Nh5 {[%emt 0:06:01]} 15. Bf1 {[%emt 0:08:31]} Nd4 {[%emt 0:01:29]} 16. Bxd4 {[%emt 0:06:12]} exd4 {[%emt 0:00:06]} 17. Na4 {[%emt 0:01:17]} b6 {[%emt 0:02:51]} 18. Nb2 {[%emt 0:01:10]} Bb7 {[%emt 0:02:35]} 19. c5 {[%emt 0:01:37]} b5 {[%emt 0:04:06]} 20. a4 {[%emt 0:03:02]} a6 {[%emt 0:02:37]} 21. Nd3 {[%emt 0:02:02]} Nf6 22. axb5 cxb5 23. e5 Nd7 24. Nxd4 (24. Qf4 $11) 24... Nxe5 25. Nxe5 Bxe5 26. Nc2 Bd5 27. Ne3 Ba2 28. Rb2 Bxb2 29. Qxb2 Be6 30. Be2 Rad8 31. Ra1 Bc8 {[%emt 0:26:46]} 32. Bf3 {[%emt 0:33:50]} Qe5 {[%emt 0:00:49]} 33. Qb1 {[%emt 0:00:45]} Rd2 {[%emt 0:01:04]} 34. Ra2 {[%emt 0:00:26]} Qd4 {[%emt 0:04:54]} 35. Rxd2 $19 {[%emt 0:00:55]} Qxd2 {[%emt 0:00:03]} 36. Kf1 {[%emt 0:05:06]} Rd8 {[%emt 0:01:46]} 37. Qe1 {[%emt 0:03:58]} Qxe1+ {[%emt 0:05:15]} 38. Kxe1 {[%emt 0:00:01]} Kf8 {[%emt 0:02:11]} 39. Nd5 {[%emt 0:00:42]} Bb7 {[%emt 0:01:36]} 40. Nc7 {[%emt 0:00:00]} Bxf3 {[%emt 0:01:55]} 41. gxf3 {[%emt 0:00:27]} Ke7 {[%emt 0:00:48]} 42. Ke2 {[%emt 0:00:14]} Kd7 {[%emt 0:01:52]} 43. Nd5 {[%emt 0:00:46]} Kc6 {[%emt 0:01:05]} 44. Ne7+ {[%emt 0:00:25]} Kc7 {[%emt 0:00:17]} 0-1

[Event "ESTCC U65 2018"]
[Site "Walbrzych"]
[Date "2018.04.14"]
[Round "1"]
[White "Jorgensen, Arne Bjorn"]
[Black "Tunik, Gennady"]
[Result "0-1"]
[ECO "A46"]
[WhiteElo "1956"]
[BlackElo "2351"]
[Annotator "NA"]
[PlyCount "100"]
[EventDate "2018.??.??"]
[EventCountry "POL"]
[SourceTitle "playchess.com"]
[Source "ChessBase"]
[SourceQuality "1"]
[WhiteTeam "Denmark"]
[BlackTeam "Russia"]
[WhiteTeamCountry "DEN"]
[BlackTeamCountry "RUS"]
[TimeControl "40/5400+30:1800+30"]

1. d4 {[%emt 0:00:00]} Nf6 {[%emt 0:00:11]} 2. Nf3 {[%emt 0:00:00]} e6 {[%emt 0:00:15]} 3. g3 {[%emt 0:00:00]} b6 {[%emt 0:00:23]} 4. Bg2 {[%emt 0:00:30]} Bb7 {[%emt 0:00:09]} 5. O-O {[%emt 0:00:16]} c5 {[%emt 0:00:31]} 6. c4 {[%emt 0:00:51]} cxd4 {[%emt 0:00:39]} 7. Nxd4 {[%emt 0:00:35]} Qc8 {[%emt 0:01:00]} 8. b3 {[%emt 0:01:43]} Bxg2 {[%emt 0:01:05]} 9. Kxg2 {[%emt 0:00:08]} Qb7+ {[%emt 0:00:16] A30: Symmetrical English: Double Fianchetto and Hedgehog} (9... Be7 10. Ba3 Bxa3 11. Nxa3 a6 12. Rc1 O-O 13. Nb1 Nc6 14. Nc3 Ne5 15. Nf3 Qb7 16. Qd6 Nxf3 17. exf3 Rfc8 {½-½ (88) Zhou,J (2636)-Yu,Y (2672) Hefei 2011}) 10. Kg1 {[%emt 0:00:34]} a6 {[%emt 0:00:27]} 11. Bb2 {[%emt 0:00:37]} Be7 {[%emt 0:04:09]} 12. Nc3 {[%emt 0:01:02]} O-O {[%emt 0:00:25]} 13. e3 {[%emt 0:02:17]} d6 {[%emt 0:02:49]} 14. Qf3 {[%emt 0:02:12]} Qxf3 {[%emt 0:00:23]} 15. Nxf3 {[%emt 0:00:05]} Nbd7 {[%emt 0:00:23]} 16. Rfd1 {[%emt 0:03:36]} Rfc8 {[%emt 0:02:26]} 17. Kg2 $146 {[%emt 0:01:42]} ({Predecessor:} 17. Nd4 Nc5 {½-½ (28) Benko,P (2420)-Stangl,M (2360) Augsburg 1988}) 17... Nc5 {[%emt 0:03:23]} 18. Nd4 {[%emt 0:04:29]} g6 {[%emt 0:01:30]} 19. f3 {[%emt 0:02:45]} Rab8 {[%emt 0:02:39]} 20. Rac1 {[%emt 0:03:38]} Bf8 {[%emt 0:09:47]} 21. Nde2 {[%emt 0:09:14]} Nfd7 {[%emt 0:05:15]} 22. f4 {[%emt 0:13:33]} f5 {[%emt 0:02:49]} 23. Kf3 {[%emt 0:11:05]} Kf7 {[%emt 0:01:40]} 24. e4 {[%emt 0:03:40]} b5 {[%emt 0:03:13]} 25. cxb5 {[%emt 0:04:30]} axb5 {[%emt 0:00:15]} 26. b4 {[%emt 0:03:27]} (26. exf5 $11 gxf5 27. b4) 26... Nxe4 {[%emt 0:00:31]} 27. Nxe4 {[%emt 0:00:15]} fxe4+ {[%emt 0:00:05]} 28. Kxe4 {[%emt 0:00:18]} d5+ {[%emt 0:00:11]} 29. Kf3 {[%emt 0:03:18]} Bxb4 {[%emt 0:00:45]} 30. Nd4 {[%emt 0:02:18]} Bc5 {[%emt 0:01:11]} 31. Re1 {[%emt 0:03:26]} Bxd4 {[%emt 0:00:35]} 32. Bxd4 {[%emt 0:00:24]} Rc4 {[%emt 0:01:13]} 33. Bf2 {[%emt 0:00:50]} Ra8 {[%emt 0:00:24]} 34. Rb1 {[%emt 0:01:16]} Rc3+ {[%emt 0:06:40]} 35. Kg4 {[%emt 0:06:30]} Nf6+ {[%emt 0:04:37]} 36. Kh3 {[%emt 0:01:08]} Ne4 {[%emt 0:02:36]} 37. Bg1 {[%emt 0:04:25]} g5 {[%emt 0:06:53]} 38. Rxb5 {[%emt 0:02:24]} gxf4 {[%emt 0:00:23]} 39. Rf1 {[%emt 0:04:06]} f3 {[%emt 0:02:25]} 40. Bd4 {[%emt 0:00:00]} Rd3 {[%emt 0:00:39]} 41. Rb7+ $19 {[%emt 0:04:26]} Kg6 {[%emt 0:00:13]} 42. Be5 {[%emt 0:08:08]} Rxa2 {[%emt 0:02:33]} 43. g4 {[%emt 0:08:04]} h5 {[%emt 0:17:49]} 44. Rc1 {[%emt 0:13:50]} Nf2+ {[%emt 0:01:35]} 45. Kh4 {[%emt 0:01:08]} Nxg4 {[%emt 0:00:18]} 46. Bg3 {[%emt 0:01:22]} Ra4 {[%emt 0:04:30]} 47. Kh3 {[%emt 0:00:42]} Nh6 {[%emt 0:00:42]} 48. Rc6 {[%emt 0:00:44]} Re4 {[%emt 0:00:11]} 49. Rcc7 {[%emt 0:00:43]} Nf5 {[%emt 0:00:11]} 50. Rc8 {[%emt 0:00:39]} Nxg3 {[%emt 0:00:50]} 0-1

[Event "ESTCC U65 2018"]
[Site "Walbrzych"]
[Date "2018.04.14"]
[Round "1"]
[White "Nilsson, Christer"]
[Black "Olesen, Poul Erik Norgaard"]
[Result "0-1"]
[ECO "C41"]
[WhiteElo "1931"]
[BlackElo "2005"]
[Annotator "NA"]
[PlyCount "60"]
[EventDate "2018.??.??"]
[EventCountry "POL"]
[SourceTitle "playchess.com"]
[Source "ChessBase"]
[SourceQuality "1"]
[WhiteTeam "Sweden"]
[BlackTeam "Denmark"]
[WhiteTeamCountry "SWE"]
[BlackTeamCountry "DEN"]
[TimeControl "40/5400+30:1800+30"]

1. e4 {[%emt 0:00:00]} e5 {[%emt 0:00:08]} 2. Nf3 {[%emt 0:00:00]} d6 {[%emt 0:00:10]} 3. d4 {[%emt 0:00:34]} exd4 {[%emt 0:00:13]} 4. Nxd4 {[%emt 0:01:08]} g6 {[%emt 0:00:13]} 5. Bc4 {[%emt 0:03:34]} Bg7 {[%emt 0:00:53]} 6. Nc3 {[%emt 0:05:50]} Nc6 {[%emt 0:02:00]} 7. Nxc6 {[%emt 0:12:05]} bxc6 {[%emt 0:00:11]} 8. Qd3 {[%emt 0:03:03]} Ne7 {[%emt 0:14:08]} 9. O-O {[%emt 0:07:24]} O-O {[%emt 0:00:16]} 10. Bg5 {[%emt 0:04:00]} Kh8 {[%emt 0:09:58]} 11. Rfe1 {[%emt 0:05:37]} h6 {[%emt 0:11:27]} 12. Bf4 {[%emt 0:06:49]} g5 {[%emt 0:13:28]} 13. Be3 {[%emt 0:08:36]} Ng6 $11 {[%emt 0:02:58]} 14. Qd2 {[%emt 0:01:55]} Ne5 {[%emt 0:02:47]} 15. Be2 {[%emt 0:00:49]} Qf6 {[%emt 0:04:34]} 16. Rad1 {[%emt 0:05:38]} Qg6 {[%emt 0:01:54]} 17. f4 {[%emt 0:01:47]} gxf4 {[%emt 0:01:53]} 18. Bxf4 {[%emt 0:00:12]} Rg8 {[%emt 0:00:46]} 19. Rf1 {[%emt 0:06:41]} Be6 {[%emt 0:03:02]} 20. Rf2 {[%emt 0:01:38]} h5 {[%emt 0:02:09]} 21. h4 {[%emt 0:02:53]} Bf6 {[%emt 0:01:34]} 22. Bg5 {[%emt 0:05:15]} Bxg5 23. hxg5 Qxg5 {[%emt 0:02:26]} 24. Qe1 {[%emt 0:01:40]} Rg7 {[%emt 0:01:48]} 25. Rd2 {[%emt 0:00:43]} Rag8 {[%emt 0:01:21]} 26. Nd1 {[%emt 0:01:05]} Qg3 {[%emt 0:01:54]} 27. Bxh5 {[%emt 0:09:09]} Rh7 {[%emt 0:02:41]} 28. Qe2 {[%emt 0:02:07]} Bg4 {[%emt 0:01:25]} 29. Bxg4 {[%emt 0:02:17]} Qh2+ {[%emt 0:00:21]} 30. Kf1 {[%emt 0:00:06]} Qh1# {[%emt 0:00:09]} 0-1

[Event "ESTCC U65 2018"]
[Site "Walbrzych"]
[Date "2018.04.14"]
[Round "1"]
[White "Ruotanen, Helge"]
[Black "Kradolfer, Georg"]
[Result "1-0"]
[ECO "B15"]
[WhiteElo "1921"]
[BlackElo "2084"]
[Annotator "NA"]
[PlyCount "75"]
[EventDate "2018.??.??"]
[EventCountry "POL"]
[SourceTitle "playchess.com"]
[Source "ChessBase"]
[SourceQuality "1"]
[WhiteTeam "Finland"]
[BlackTeam "Switzerland"]
[WhiteTeamCountry "FIN"]
[BlackTeamCountry "SUI"]
[TimeControl "40/5400+30:1800+30"]

1. e4 {[%emt 0:00:00]} c6 {[%emt 0:00:57]} 2. d4 {[%emt 0:00:27]} d5 {[%emt 0:00:18]} 3. f3 {[%emt 0:01:19]} dxe4 {[%emt 0:01:54]} 4. Nc3 {[%emt 0:01:31]} e5 {[%emt 0:04:11] B15: Caro-Kann: 3 Nc3: 3...g6 and 3...dxe4 4 Nxe4 Nf6 5 Nxf6+ exf6} (4... exf3 5. Nxf3 Bg4 6. h3 Bxf3 7. Qxf3 e6 8. Bd2 Nf6 9. O-O-O Be7 10. g4 Qxd4 11. Nb5 Qb6 12. Be3 Qa5 13. Bd2 Qb6 14. Be3 Qa5 15. Bd2 Qb6 16. Be3 c5 17. Bf4 {½-½ (17) Gareyev,T (2617)-Shimanov,A (2642) Burlingame 2017}) 5. dxe5 {[%emt 0:06:59]} Qxd1+ {[%emt 0:00:44]} 6. Nxd1 {[%emt 0:00:02]} exf3 {[%emt 0:00:50]} 7. Nxf3 {[%emt 0:00:12]} Bg4 {[%emt 0:02:13]} 8. Nf2 {[%emt 0:02:20]} Bh5 {[%emt 0:03:10]} 9. Bd2 $146 {[%emt 0:04:48]} ({Predecessor:} 9. Bc4 Nd7 10. e6 fxe6 11. Ng5 O-O-O 12. O-O {1-0 (67) Genocchio,D (2372)-Janocko,P Olomouc 2002}) 9... Nd7 {[%emt 0:01:55]} 10. g4 {[%emt 0:00:56]} Bg6 {[%emt 0:00:36]} 11. O-O-O {[%emt 0:00:03]} Bc5 {[%emt 0:02:21]} 12. Nd3 {[%emt 0:01:37]} Bb6 {[%emt 0:12:49]} 13. Re1 {[%emt 0:01:28]} O-O-O {[%emt 0:02:23]} 14. Nf4 {[%emt 0:04:45]} Nc5 {[%emt 0:05:03]} 15. Ng5 {[%emt 0:02:02]} Nh6 {[%emt 0:09:11]} 16. h4 {[%emt 0:06:44]} f6 {[%emt 0:23:35]} 17. exf6 {[%emt 0:05:09]} gxf6 {[%emt 0:02:18]} 18. Nge6 {[%emt 0:05:34]} Be4 {[%emt 0:08:24]} 19. Rh3 {[%emt 0:03:22]} Rde8 {[%emt 0:02:39]} 20. Bc4 {[%emt 0:04:19]} f5 {[%emt 0:07:55]} 21. g5 {[%emt 0:05:22]} Ng4 {[%emt 0:00:36]} 22. Bc3 {[%emt 0:00:27]} Nf2 {[%emt 0:06:36]} 23. Rg3 {[%emt 0:09:31]} Rhg8 {[%emt 0:00:24]} 24. Nxc5 {[%emt 0:01:14]} Bxc5 {[%emt 0:00:01]} 25. Bxg8 {[%emt 0:00:18]} Rxg8 {[%emt 0:00:01]} 26. Nh5 {[%emt 0:04:01]} Bd6 {[%emt 0:00:17]} 27. Rgg1 {[%emt 0:01:40]} Rd8 {[%emt 0:00:58]} 28. Rgf1 {[%emt 0:03:34]} Ng4 {[%emt 0:01:04]} 29. Nf6 {[%emt 0:01:00]} Nh2 {[%emt 0:00:22]} 30. Nxe4 {[%emt 0:00:44]} fxe4 {[%emt 0:00:25]} 31. Rf7 {[%emt 0:00:22]} Re8 {[%emt 0:01:01]} 32. Rxh7 {[%emt 0:00:23]} Bf4+ $18 {[%emt 0:00:28]} 33. Kb1 {[%emt 0:00:13]} Nf3 {[%emt 0:00:20]} 34. Re2 {[%emt 0:04:43]} e3 {[%emt 0:00:29]} 35. Rh8 {[%emt 0:00:28]} Rxh8 {[%emt 0:00:34]} 36. Bxh8 {[%emt 0:00:02]} Ng1 {[%emt 0:00:19]} 37. g6 {[%emt 0:04:08]} Bh6 {[%emt 0:00:29]} 38. Rxe3 {[%emt 0:00:24]} 1-0

[Event "ESTCC U65 2018"]
[Site "Walbrzych"]
[Date "2018.04.14"]
[Round "1"]
[White "Gromark, Per-Olof"]
[Black "Malmdin, Nils-Ake"]
[Result "1/2-1/2"]
[ECO "E91"]
[WhiteElo "1901"]
[BlackElo "2154"]
[Annotator "NA"]
[PlyCount "66"]
[EventDate "2018.??.??"]
[EventCountry "POL"]
[SourceTitle "playchess.com"]
[Source "ChessBase"]
[SourceQuality "1"]
[WhiteTeam "Sweden"]
[BlackTeam "Sweden"]
[WhiteTeamCountry "SWE"]
[BlackTeamCountry "SWE"]
[TimeControl "40/5400+30:1800+30"]

1. c4 {[%emt 0:00:00]} g6 {[%emt 0:00:50]} 2. e4 {[%emt 0:00:00]} Bg7 {[%emt 0:09:07]} 3. d4 {[%emt 0:00:00]} d6 {[%emt 0:01:05]} 4. Nc3 {[%emt 0:00:29]} Nf6 {[%emt 0:01:13]} 5. Nf3 {[%emt 0:00:19]} O-O {[%emt 0:00:27]} 6. Be2 {[%emt 0:00:03]} Nbd7 {[%emt 0:06:11]} 7. O-O {[%emt 0:00:15]} e5 {[%emt 0:00:15]} 8. d5 {[%emt 0:00:07]} Nc5 {[%emt 0:00:52]} 9. Qc2 {[%emt 0:00:07]} a5 {[%emt 0:00:20]} 10. Bg5 {[%emt 0:00:19]} h6 {[%emt 0:00:15]} 11. Be3 {[%emt 0:00:21]} b6 {[%emt 0:00:38]} 12. Nd2 {[%emt 0:04:09]} Bd7 {[%emt 0:11:35]} 13. b3 {[%emt 0:00:52]} Ne8 {[%emt 0:01:27]} 14. a3 {[%emt 0:02:43]} f5 {[%emt 0:04:53]} 15. f3 {[%emt 0:00:12]} Nf6 {[%emt 0:04:20]} 16. b4 {[%emt 0:04:47]} Nb7 {[%emt 0:00:35]} 17. Nb5 {[%emt 0:11:13]} Nh5 {[%emt 0:12:40]} 18. Rfc1 {[%emt 0:23:40]} Nf4 {[%emt 0:09:17]} 19. Bf1 {[%emt 0:00:16]} c5 {[%emt 0:01:53]} 20. dxc6 {[%emt 0:02:49]} Bxc6 {[%emt 0:00:09]} 21. Nc3 {[%emt 0:07:17]} Ne6 {[%emt 0:02:26]} 22. Nd5 {[%emt 0:03:31]} Nd4 {[%emt 0:02:02]} 23. Bxd4 {[%emt 0:01:28]} exd4 {[%emt 0:00:10]} 24. Bd3 {[%emt 0:00:37]} Rc8 {[%emt 0:00:49]} 25. Qd1 {[%emt 0:03:59]} Rf7 {[%emt 0:10:50]} 26. exf5 {[%emt 0:02:41]} gxf5 {[%emt 0:00:13]} 27. Qe1 {[%emt 0:01:13]} Bxd5 {[%emt 0:06:19]} 28. cxd5 {[%emt 0:00:08]} Rc3 {[%emt 0:00:13]} 29. Bb5 {[%emt 0:04:43]} Qg5 {[%emt 0:02:07]} 30. Qe8+ {[%emt 0:08:30]} Bf8 {[%emt 0:02:47]} 31. Qe1 {[%emt 0:03:44]} Bg7 {[%emt 0:00:55]} 32. Qe8+ {[%emt 0:01:24]} Bf8 {[%emt 0:00:29]} 33. Qe1 {[%emt 0:00:15]} Bg7 {[%emt 0:01:34]} 1/2-1/2

[Event "ESTCC U65 2018"]
[Site "Walbrzych"]
[Date "2018.04.14"]
[Round "1"]
[White "Marks, Ian A"]
[Black "Lindholm, Pertti"]
[Result "1-0"]
[ECO "B08"]
[WhiteElo "1895"]
[BlackElo "1624"]
[Annotator "NA"]
[PlyCount "53"]
[EventDate "2018.??.??"]
[EventCountry "POL"]
[SourceTitle "playchess.com"]
[Source "ChessBase"]
[SourceQuality "1"]
[WhiteTeam "Scotland"]
[BlackTeam "Finland"]
[WhiteTeamCountry "SCO"]
[BlackTeamCountry "FIN"]
[TimeControl "40/5400+30:1800+30"]

1. d4 {[%emt 0:00:00]} Nf6 {[%emt 0:00:19]} 2. Nf3 {[%emt 0:00:07]} d6 {[%emt 0:00:45]} 3. Nc3 {[%emt 0:01:11]} g6 {[%emt 0:00:51]} 4. e4 {[%emt 0:00:06]} Bg7 {[%emt 0:00:42]} 5. Be3 {[%emt 0:00:07]} Ng4 {[%emt 0:01:09]} 6. Bg5 {[%emt 0:00:23]} f6 {[%emt 0:01:11]} 7. Bh4 {[%emt 0:00:39]} O-O {[%emt 0:01:33]} 8. Bc4+ {[%emt 0:01:45]} Kh8 {[%emt 0:00:15]} 9. Bg3 {[%emt 0:02:22]} Nc6 {[%emt 0:01:33]} 10. Qe2 {[%emt 0:07:32]} Na5 {[%emt 0:02:12]} 11. Bd3 {[%emt 0:01:43]} c5 {[%emt 0:05:45]} 12. O-O-O {[%emt 0:06:10]} cxd4 {[%emt 0:02:51]} 13. Nxd4 {[%emt 0:00:51]} f5 {[%emt 0:01:23]} 14. Nf3 {[%emt 0:07:35]} Bxc3 {[%emt 0:03:21]} 15. bxc3 {[%emt 0:00:09]} Be6 {[%emt 0:01:50]} 16. Nd4 {[%emt 0:07:19]} Bxa2 {[%emt 0:04:09]} 17. exf5 {[%emt 0:00:35]} gxf5 {[%emt 0:03:14]} 18. Bxf5 {[%emt 0:01:23]} Nh6 {[%emt 0:01:58]} 19. Ne6 {[%emt 0:04:37]} Qb6 {[%emt 0:02:59]} 20. Bd3 {[%emt 0:05:15]} Rf6 {[%emt 0:03:21]} 21. Qe4 {[%emt 0:03:00]} Nf5 {[%emt 0:01:43]} 22. Nd4 {[%emt 0:03:40]} d5 {[%emt 0:04:08]} 23. Qe5 {[%emt 0:04:11]} Nxg3 {[%emt 0:02:23]} 24. hxg3 {[%emt 0:00:50]} Nc4 {[%emt 0:03:14]} 25. Rxh7+ {[%emt 0:00:29]} Kg8 {[%emt 0:00:04]} 26. Qxd5+ {[%emt 0:02:54]} e6 {[%emt 0:01:46]} 27. Qg5+ {[%emt 0:00:06]} 1-0

[Event "ESTCC U65 2018"]
[Site "Walbrzych"]
[Date "2018.04.14"]
[Round "1"]
[White "Auvinen, Esa"]
[Black "Giulian, Philip M"]
[Result "0-1"]
[ECO "B08"]
[WhiteElo "1888"]
[BlackElo "2124"]
[Annotator "NA"]
[PlyCount "70"]
[EventDate "2018.??.??"]
[EventCountry "POL"]
[SourceTitle "playchess.com"]
[Source "ChessBase"]
[SourceQuality "1"]
[WhiteTeam "Finland"]
[BlackTeam "Scotland"]
[WhiteTeamCountry "FIN"]
[BlackTeamCountry "SCO"]
[TimeControl "40/5400+30:1800+30"]

1. e4 {[%emt 0:00:00]} d6 {[%emt 0:00:04]} 2. d4 {[%emt 0:00:00]} Nf6 {[%emt 0:00:06]} 3. Nc3 {[%emt 0:00:02]} g6 {[%emt 0:00:07]} 4. Nf3 {[%emt 0:00:18]} Bg7 {[%emt 0:00:09]} 5. Be2 {[%emt 0:00:17]} O-O {[%emt 0:00:12]} 6. O-O {[%emt 0:00:17]} a6 {[%emt 0:00:08]} 7. b4 $146 {[%emt 0:04:05] B08: Pirc Defence: Classical System} ({Predecessor:} 7. a4 Nc6 8. h3 e5 9. dxe5 dxe5 10. Bc4 h6 11. Be3 Qe7 12. Qe2 Be6 13. Rfd1 Rad8 14. Bb3 Rfe8 15. Rxd8 Rxd8 16. Bxe6 Qxe6 {0-1 (68) Wang,H (2709)-Yu,Y (2751) Huaian 2017}) 7... Nc6 {[%emt 0:06:34]} 8. a3 {[%emt 0:00:37]} e5 {[%emt 0:01:39]} 9. dxe5 {[%emt 0:00:24]} dxe5 {[%emt 0:01:01]} 10. Qxd8 {[%emt 0:01:03]} Rxd8 {[%emt 0:00:45]} 11. Bb2 {[%emt 0:00:08]} Bg4 {[%emt 0:03:29]} 12. Rad1 {[%emt 0:06:40]} Bxf3 {[%emt 0:02:01]} 13. Rxd8+ {[%emt 0:06:00]} Rxd8 {[%emt 0:00:06]} 14. Bxf3 {[%emt 0:00:08]} Nd4 {[%emt 0:02:23]} 15. Bd1 {[%emt 0:01:17]} Bh6 {[%emt 0:04:14]} 16. f3 {[%emt 0:02:41]} Nd7 {[%emt 0:20:01]} 17. Ne2 {[%emt 0:05:26]} Be3+ {[%emt 0:00:10]} 18. Kh1 {[%emt 0:00:09]} Nb6 {[%emt 0:00:15]} 19. Nxd4 {[%emt 0:02:09]} Bxd4 {[%emt 0:00:27]} 20. Bxd4 {[%emt 0:00:28]} Rxd4 {[%emt 0:00:09]} 21. Be2 {[%emt 0:03:37]} Na4 {[%emt 0:08:38]} 22. Bd3 {[%emt 0:03:59]} Nb2 {[%emt 0:01:09]} 23. Kg1 {[%emt 0:10:35]} Nxd3 {[%emt 0:00:41]} 24. cxd3 {[%emt 0:00:05]} Rxd3 {[%emt 0:00:06]} 25. Rc1 {[%emt 0:00:31]} c6 {[%emt 0:02:04]} 26. a4 {[%emt 0:02:46]} Rb3 {[%emt 0:00:34]} 27. Rc4 {[%emt 0:01:08]} f6 {[%emt 0:00:37]} 28. a5 {[%emt 0:02:25]} Kf7 {[%emt 0:00:27]} 29. Kf2 {[%emt 0:00:51]} Rb2+ {[%emt 0:00:22]} 30. Kf1 {[%emt 0:03:50]} Ke6 {[%emt 0:00:11]} 31. Kg1 {[%emt 0:00:15]} Kd6 {[%emt 0:00:30]} 32. Kf1 $19 {[%emt 0:00:15]} Kc7 {[%emt 0:01:30]} 33. Kg1 {[%emt 0:00:17]} b5 {[%emt 0:00:30]} 34. axb6+ {[%emt 0:00:26]} Kxb6 {[%emt 0:00:05]} 35. Kf1 {[%emt 0:00:04]} Rd2 {[%emt 0:00:24]} 0-1

[Event "ESTCC U65 2018"]
[Site "Walbrzych"]
[Date "2018.04.14"]
[Round "1"]
[White "Fitzke, Ulrich"]
[Black "Ackermann, Hans Werner"]
[Result "0-1"]
[ECO "A41"]
[WhiteElo "1827"]
[BlackElo "2211"]
[Annotator "NA"]
[PlyCount "94"]
[EventDate "2018.??.??"]
[EventCountry "POL"]
[SourceTitle "playchess.com"]
[Source "ChessBase"]
[SourceQuality "1"]
[WhiteTeam "Germany"]
[BlackTeam "Germany"]
[WhiteTeamCountry "GER"]
[BlackTeamCountry "GER"]
[TimeControl "40/5400+30:1800+30"]

1. d4 {[%emt 0:00:00]} d6 {[%emt 0:00:13]} 2. c4 {[%emt 0:00:27]} e5 {[%emt 0:00:39]} 3. Nc3 {[%emt 0:01:59]} exd4 {[%emt 0:00:37]} 4. Qxd4 {[%emt 0:00:43]} Nc6 {[%emt 0:00:05]} 5. Qd1 {[%emt 0:02:29]} g6 {[%emt 0:01:34] A21: English Opening: 1...e5 2 Nc3} 6. b3 {[%emt 0:01:12]} Bg7 {[%emt 0:00:31]} 7. Bb2 {[%emt 0:00:32]} Nf6 {[%emt 0:00:25]} 8. e3 {[%emt 0:00:58]} Bf5 $146 {[%emt 0:05:40]} ({Find the theoretical novelty and annotate with similar games:} 8... O-O 9. Be2 Ne4 10. Rc1 Qh4 11. g3 Qf6 12. Bf3 Nc5 13. Na4 {0-1 (38) Eid,M (2081)-Mamedov,R (2660) Bastia 2011}) 9. Bd3 {[%emt 0:04:13]} Bxd3 {[%emt 0:06:17]} 10. Qxd3 {[%emt 0:01:14]} O-O {[%emt 0:05:17]} 11. Nf3 {[%emt 0:00:28]} Nb4 {[%emt 0:03:29]} 12. Qe2 {[%emt 0:07:17]} a5 {[%emt 0:05:01]} 13. O-O {[%emt 0:01:45]} Re8 {[%emt 0:08:26]} 14. Rfd1 {[%emt 0:00:32]} Na6 {[%emt 0:04:23]} 15. Nd5 {[%emt 0:01:43]} a4 {[%emt 0:04:39]} 16. Nxf6+ {[%emt 0:04:52]} Bxf6 {[%emt 0:00:08]} 17. Bxf6 {[%emt 0:02:18]} Qxf6 {[%emt 0:00:08]} 18. Nd4 {[%emt 0:00:55]} Nc5 {[%emt 0:08:52]} 19. b4 {[%emt 0:02:32]} Ne4 {[%emt 0:01:46]} 20. Rac1 {[%emt 0:00:47]} h5 {[%emt 0:10:53]} 21. Qf3 {[%emt 0:00:45]} Qxf3 {[%emt 0:02:06]} 22. Nxf3 {[%emt 0:01:47]} a3 {[%emt 0:12:21]} 23. Nd2 {[%emt 0:02:27]} Ra4 {[%emt 0:01:14]} 24. b5 {[%emt 0:01:57]} Rb4 {[%emt 0:07:36]} 25. Nb1 {[%emt 0:08:12]} ({White should play} 25. Nb3) 25... Rb2 {[%emt 0:01:13]} 26. f3 {[%emt 0:00:53]} Nc5 {[%emt 0:02:14]} 27. Rc3 {[%emt 0:01:22]} Rxa2 {[%emt 0:00:40]} 28. Nxa3 {[%emt 0:01:23]} Ra8 {[%emt 0:00:29]} 29. Nb1 {[%emt 0:00:58]} Rb2 {[%emt 0:00:11]} 30. Ra3 {[%emt 0:01:08]} Rxa3 {[%emt 0:00:38]} 31. Nxa3 {[%emt 0:00:26]} Rb3 {[%emt 0:00:03]} 32. b6 {[%emt 0:03:13]} (32. Nc2 $17 {was called for.}) 32... Rxa3 {[%emt 0:00:50]} 33. bxc7 Ra8 $19 34. Rxd6 {[%emt 0:01:32]} Ne6 {[%emt 0:00:33]} 35. Rb6 {[%emt 0:01:16]} Rc8 {[%emt 0:00:25]} 36. Rxb7 {[%emt 0:00:20]} Nxc7 {[%emt 0:00:09]} 37. Kf2 {[%emt 0:00:39]} Ne6 {[%emt 0:00:15]} 38. Rb4 {[%emt 0:00:25]} Ra8 {[%emt 0:00:05]} 39. f4 {[%emt 0:00:44]} f5 {[%emt 0:02:45]} 40. h3 {[%emt 0:01:12]} Nc5 {[%emt 0:30:57]} 41. Kf3 {[%emt 0:00:50]} Ra2 {[%emt 0:00:00]} 42. g4 {[%emt 0:00:36]} Ne4 {[%emt 0:00:00]} 43. gxf5 {[%emt 0:00:34]} gxf5 {[%emt 0:00:00]} 44. Rb8+ {[%emt 0:00:29]} Kf7 {[%emt 0:00:00]} 45. Rb7+ {[%emt 0:00:21]} Ke8 {[%emt 0:00:00]} 46. Rb8+ {[%emt 0:00:24]} Kd7 {[%emt 0:00:00]} 47. Rb7+ {[%emt 0:00:25]} Kc6 {[%emt 0:00:00]} 0-1